Cogmind - Beta 14 @@@ ROGUE MODE // 2024.12.29 @ 20:25:13 Player: Fazzonamite Result: Destroyed by D-53 Grenadier with Mini Grenade Launcher Performance ------------- Evolutions (0) 0 Regions Visited (4) 800 Robots Destroyed (8) 40 Value Destroyed (68) 68 Prototype IDs (25) 500 Alien Tech Used (0) 0 Bonus (300) 300 TOTAL SCORE: 1708 Bonus ------- Aligned with FarCom 300 Cogmind --------- Core Integrity 0/250 Matter 251/300 Energy 94/100 System Corruption 2% Temperature Cool (0) Movement Rolling (100) Location -9/Mines Parts ------- > --- POWER (1) -------- (None) > --- PROPULSION (2) --- Compact Wheel (fused) Compact Wheel > --- UTILITY (2) ------ Large Storage Unit Seismic Detector > --- WEAPON (2) ------- (None) > --- INVENTORY (15) --- Wheel Small Storage Unit Structural Scanner Small Laser Light Assault Rifle Light Assault Rifle Longsword +1 Peak State ------------ > --- POWER ------------ Ion Engine > --- PROPULSION ------- Wheel Compact Wheel > --- UTILITY ---------- Large Storage Unit Structural Scanner > --- WEAPON ----------- Assault Rifle Light Assault Rifle > --- INVENTORY -------- Ion Engine Wheel Compact Wheel Small Storage Unit Seismic Detector Small Laser Longsword +1 [Rating: 8] Favorites ----------- Power Ion Engine Engine Ion Engine Propulsion Compact Wheel Wheel Compact Wheel Utility Seismic Detector Device Seismic Detector Storage Small Storage Unit Weapon Assault Rifle Energy Gun Small Laser Ballistic Gun Assault Rifle Build | -11 -10 -10 -10 -9 ------- Run | Yrd Mat Min Exi Min Slots Evolved . | . . . . . Power . | . . . . . Propulsion . | . . . . . Utility . | . . . . . Weapon . | . . . . . Parts Attached 14 | 6 1 . 5 2 Power 2 | 1 . . . 1 Engine 2 | 1 . . . 1 Core . | . . . . . Reactor . | . . . . . Propulsion 3 | 2 . . . 1 Treads . | . . . . . Leg . | . . . . . Wheel 3 | 2 . . . 1 Hover . | . . . . . Flight . | . . . . . Utility 5 | 1 1 . 3 . Device 3 | 1 1 . 1 . Storage 2 | . . . 2 . Processor . | . . . . . Hackware . | . . . . . Protection . | . . . . . Artifact . | . . . . . Weapon 4 | 2 . . 2 . Energy Gun 1 | 1 . . . . Energy Cannon . | . . . . . Ballistic Gun 3 | 1 . . 2 . Ballistic Cannon . | . . . . . Launcher . | . . . . . Special Weapon . | . . . . . Impact Weapon . | . . . . . Slashing Weapon . | . . . . . Piercing Weapon . | . . . . . Special Melee Weapon . | . . . . . Unidentified Prototypes . | . . . . . Parts Lost 5 | . . . . 5 Power 2 | . . . . 2 Propulsion 1 | . . . . 1 Utility . | . . . . . Weapon 2 | . . . . 2 Highest Loss Streak 4 | . . . . 4 To Critical Strikes 1 | . . . . 1 Average Slot Usage (%) 84 | . 88 100 72 97 Engine 14 | . 14 14 14 14 Wheel 27 | . 28 28 28 26 Device 15 | . 17 28 14 14 Storage 8 | . . . 14 14 Energy Gun 5 | . 14 14 . . Ballistic Gun 11 | . 14 14 1 26 Peak Build Rating 8 | 6 7 7 8 8 Average Rating 6 | 3 6 7 5 7 On Entrance 5 | . 6 7 7 8 Naked Turns . | . . . . . Heaviest Build 29 | 9 10 10 29 29 Greatest Support 32 | 26 26 26 26 32 Greatest Overweight (x) 1 | . . . 1 1 Average Overweight (x) . | . . . . . Largest Inventory Capacity 15 | 5 5 5 15 15 Average Capacity 8 | 5 5 5 8 15 Most Carried 9 | 5 5 5 9 8 Average Carried 6 | 3 5 5 7 7 Final Capacity 15 | 5 5 5 15 15 Final Carried 7 | 5 5 5 7 7 Class Distribution -------------------- 100% | Mutant Dominant Class ---------------- Mutant | -10/Materials Mutant | -10/Mines Mutant | -10/Exiles Mutant | -9/Mines Resources | -11 -10 -10 -10 -9 ----------- Run | Yrd Mat Min Exi Min Matter Collected 375 | 247 18 . . 110 Remotely . | . . . . . Salvage Created 182 | 81 18 . . 83 Parts 16 | 7 3 . . 6 Haulers Intercepted . | . . . . . Recyclers Shooed . | . . . . . Parts Field Recycled . | . . . . . Retrieved Matter . | . . . . . Parts Self-Destructed . | . . . . . Prevented . | . . . . . Kills | -11 -10 -10 -10 -9 ------- Run | Yrd Mat Min Exi Min Combat Hostiles Destroyed 5 | . . . . 5 Guns 5 | . . . . 5 Classes Destroyed 4 | 2 1 . . 1 Builder 1 | . 1 . . . Tunneler 1 | 1 . . . . Recycler 1 | 1 . . . . Swarmer 5 | . . . . 5 Best Kill Streak 3 | 2 1 . . 3 Combat Bots Only 3 | . . . . 3 Max Kills in Single Turn 1 | 1 1 . . 1 Gunslinging . | . . . . . Exploded . | . . . . . Melee . | . . . . . Uniques/NPCs Destroyed . | . . . . . Combat | -11 -10 -10 -10 -9 -------- Run | Yrd Mat Min Exi Min Hostile Shots Fired 41 | . . . . 41 Missed 8 | . . . . 8 Damage Taken 662 | . . . . 662 Core 287 | . . . . 287 Absorbed by Shields . | . . . . . Core Remaining (%) 100 | 100 . . . . Volleys Fired 24 | 4 3 . . 17 Largest 2 | 2 2 . . 2 Hottest 60 | 60 60 . . 40 Shots Fired 48 | 8 6 . . 34 Gun 48 | 8 6 . . 34 Cannon . | . . . . . Launcher . | . . . . . Special . | . . . . . Kinetic 41 | 4 3 . . 34 Thermal 7 | 4 3 . . . Explosive . | . . . . . Electromagnetic . | . . . . . Robot Hit Streak 4 | 4 1 . . 4 Robot Miss Streak 5 | 1 2 . . 5 Penetration Max . | . . . . . Secondary Targets 2 | . . . . 2 Max Gunslinging Chain 1 | . . . . 1 Shots Hit Robots 22 | 6 2 . . 14 Core Hits 11 | 3 1 . . 7 Critical Kills . | . . . . . Critical Parts Destroyed . | . . . . . Critical Strikes . | . . . . . Melee Attacks . | . . . . . Impact . | . . . . . Slashing . | . . . . . Piercing . | . . . . . Sneak Attacks . | . . . . . Combat Hostiles . | . . . . . Follow-up Attacks . | . . . . . Damage Inflicted 249 | 69 27 . . 153 Guns 249 | 69 27 . . 153 Cannons . | . . . . . Explosions . | . . . . . Melee . | . . . . . Ramming . | . . . . . Kinetic 191 | 23 15 . . 153 Thermal 58 | 46 12 . . . Explosive . | . . . . . Electromagnetic . | . . . . . Impact . | . . . . . Slashing . | . . . . . Piercing . | . . . . . Highest Corruption 2 | . 2 2 2 2 Average Corruption 2 | . 2 2 2 2 Corruption Purged . | . . . . . Corruption Blocked . | . . . . . Effects 4 | . . . 2 2 Message Errors 1 | . . . . 1 Matter Fused 2 | . . . 1 1 Parts Fused 1 | . . . 1 . Overload Shots . | . . . . . Overflow Damage . | . . . . . Projectiles . | . . . . . Explosions . | . . . . . Melee . | . . . . . Knockbacks . | . . . . . Impact . | . . . . . Kinetic . | . . . . . Secondary . | . . . . . Self-Inflicted Damage . | . . . . . Shots . | . . . . . Rammed . | . . . . . Targets Rammed . | . . . . . Kicked . | . . . . . Crushed . | . . . . . Highest Temperature . | . . . . . Average Temperature . | . . . . . Received Heat Transfer . | . . . . . Siege Activations . | . . . . . Robots Corrupted . | . . . . . Combat Hostiles . | . . . . . Parts Fried . | . . . . . Impact Corruptions . | . . . . . Robots Melted . | . . . . . Combat Hostiles . | . . . . . Parts Melted . | . . . . . Heat Transferred 125 | 100 25 . . . Parts Sabotaged . | . . . . . Parts Stolen . | . . . . . Parts Stripped . | . . . . . Power Chain Reactions . | . . . . . Alert | -11 -10 -10 -10 -9 ------- Run | Yrd Mat Min Exi Min Peak Influence 130 | 10 26 9 . 130 Initial 9 | . 6 9 . . Average 34 | 4 9 9 . 88 Maximum Alert Level . | . . . . . Low Security (%) 100 | 100 100 100 . 100 Level 1 . | . . . . . Level 2 . | . . . . . Level 3 . | . . . . . Level 4 . | . . . . . Level 5 . | . . . . . High Security . | . . . . . Max Security . | . . . . . Squads Dispatched 1 | . 1 . . . Investigation . | . . . . . Extermination . | . . . . . Reinforcement 1 | . 1 . . . Assault . | . . . . . Garrison . | . . . . . Intercept . | . . . . . Searches Triggered . | . . . . . Construction Impeded . | . . . . . Haulers Reinforced . | . . . . . Active Scanning Responses . | . . . . . Cargo Convoy Interrupts . | . . . . . Stealth | -11 -10 -10 -10 -9 --------- Run | Yrd Mat Min Exi Min Distress Signals . | . . . . . Communications Jammed . | . . . . . Distress Signals . | . . . . . Times Spotted 19 | . 2 . . 17 Peak Tracking Total 10 | . 2 . . 10 Tactical Retreats 2 | . . . . 2 Traps | -11 -10 -10 -10 -9 ------- Run | Yrd Mat Min Exi Min Traps Triggered 1 | . 1 . . . Indirectly . | . . . . . Trap Hack Attempts . | . . . . . Triggered . | . . . . . Disarmed . | . . . . . Reprogrammed . | . . . . . Reused . | . . . . . Traps Extracted . | . . . . . Installed . | . . . . . Triggered . | . . . . . Machines | -11 -10 -10 -10 -9 ---------- Run | Yrd Mat Min Exi Min Machines Disabled . | . . . . . Max in Single Turn . | . . . . . Machines Repaired . | . . . . . Machines Dismantled . | . . . . . Machines Sabotaged . | . . . . . Overloaded Fab Kills . | . . . . . Hacking | -11 -10 -10 -10 -9 --------- Run | Yrd Mat Min Exi Min Machines Accessed 2 | . 1 . 1 . Terminals 1 | . 1 . . . Fabricators . | . . . . . Repair Stations . | . . . . . Recycling Units . | . . . . . Scanalyzers . | . . . . . Garrison Access . | . . . . . Total Hacks 3 | . 2 . 1 . Successful 2 | . 1 . 1 . Failed 1 | . 1 . . . Catastrophic . | . . . . . Database Lockouts . | . . . . . Manual 1 | . . . 1 . Terminals 2 | . 2 . . . Fabricators . | . . . . . Repair Stations . | . . . . . Recycling Units . | . . . . . Scanalyzers . | . . . . . Garrison Access . | . . . . . Terminal Hacks 2 | . 1 . 1 . Prototype ID Bank 1 | . 1 . . . Derelict Proto ID Bank 1 | . . . 1 . Fabricator Hacks . | . . . . . Repair Station Hacks . | . . . . . Recycling Unit Hacks . | . . . . . Scanalyzer . | . . . . . Garrison Access Hacks . | . . . . . Unauthorized Hacks . | . . . . . Terminals . | . . . . . Fabricators . | . . . . . Repair Stations . | . . . . . Recycling Units . | . . . . . Scanalyzers . | . . . . . Garrison Access . | . . . . . Data Cores Recovered . | . . . . . Used . | . . . . . Hacking Detections 1 | . 1 . . . Full Trace Events . | . . . . . Feedback Events . | . . . . . Feedback Blocked . | . . . . . Robot Schematics Acquired . | . . . . . Robots Built . | . . . . . Authchips . | . . . . . Time . | . . . . . Total Robot Build Rating . | . . . . . Part Schematics Acquired . | . . . . . Parts Built . | . . . . . Authchips . | . . . . . Time . | . . . . . Total Part Build Rating . | . . . . . Parts Repaired . | . . . . . Time . | . . . . . Parts Recycled . | . . . . . Recycled Matter . | . . . . . Retrieved Matter . | . . . . . Retrieved Components . | . . . . . Parts Scanalyzed . | . . . . . Part Schematics Acquired . | . . . . . Parts Damaged . | . . . . . Bothacking | -11 -10 -10 -10 -9 ------------ Run | Yrd Mat Min Exi Min Used RIF Installer . | . . . . . Robots Hacked . | . . . . . Non-combat . | . . . . . Combat . | . . . . . Robot Hacks Applied . | . . . . . Relay Couplers Released . | . . . . . Fabnet Peak Effective % . | . . . . . Robots Rewired . | . . . . . Allies Hacked . | . . . . . Hacks Repelled . | . . . . . Allies | -11 -10 -10 -10 -9 -------- Run | Yrd Mat Min Exi Min Total Allies . | . . . . . Largest Group . | . . . . . Highest-Rated Group . | . . . . . Highest-Rated Ally . | . . . . . Total Orders . | . . . . . Ally Attacks . | . . . . . Total Damage . | . . . . . Kills . | . . . . . Allies Corrupted . | . . . . . Allies Melted . | . . . . . Intel | -11 -10 -10 -10 -9 ------- Run | Yrd Mat Min Exi Min Robot Analysis Total . | . . . . . Derelict Logs Recovered 2 | . . . . 2 Drone Launches . | . . . . . Drone Recoveries . | . . . . . Exploration | -11 -10 -10 -10 -9 ------------- Run | Yrd Mat Min Exi Min Turns Passed 587 | 63 182 8 206 128 Spaces Moved 447 | 45 103 9 219 71 Core 15 | 15 . . . . Treads . | . . . . . Legs . | . . . . . Wheels 432 | 30 103 9 219 71 Hover . | . . . . . Flight . | . . . . . Fastest Speed 50 | 50 90 90 90 100 Average Speed 91 | 77 90 90 90 105 Slowest Speed 115 | 100 90 90 105 115 Overloaded Moves . | . . . . . Propulsion Burnouts . | . . . . . Robots Hopped . | . . . . . Cave-ins Triggered . | . . . . . Exploration Rate (%) 20 | 4 22 4 60 14 Regions Visited 4 Branch Regions 3 Pre-discovered Areas 2 | . . . . 2 Known Exits Taken . | . . . . . Unknown Exits Taken 4 | 1 1 1 1 . Scrap Searched . | . . . . . Spaces Dug . | . . . . . Terrain Destroyed . | . . . . . Melee . | . . . . . Projectile . | . . . . . AOE . | . . . . . Terrain Rammed . | . . . . . Walls Destroyed . | . . . . . Machines Disabled . | . . . . . Actions | -11 -10 -10 -10 -9 --------- Run | Yrd Mat Min Exi Min Total 578 | 64 185 8 228 93 Wait 81 | 1 79 . . 1 Move 443 | 44 102 8 218 71 Hop . | . . . . . Pick Up 13 | 9 . . 2 2 Fast Attach 3 | 2 1 . . . Attach 8 | 4 . . 2 2 Detach 2 | . . . 2 . Swap 3 | . . . 3 . Drop 1 | . . . 1 . Fire 24 | 4 3 . . 17 Melee . | . . . . . Ram . | . . . . . Kick . | . . . . . Crush . | . . . . . Escape Stasis . | . . . . . Rewire . | . . . . . Trap . | . . . . . Miscellaneous . | . . . . . Route ------- -11/Scrapyard -10/Materials -10/Mines -10/Exiles -9/Mines History --------- Turn | Location | Event 5 | -11/Scrapyard | Discovered new exit (range 14) 64 | -11/Scrapyard | Entered Materials 220 | -10/Materials | Discovered new exit (range 15) 246 | -10/Materials | Entered Mines 250 | -10/Mines | Deemed a non-threat by the Exiles lab entrance 250 | -10/Mines | Discovered new exit (range 5) 254 | -10/Mines | Entered Exiles 280 | -10/Exiles | Met 8R-AWN 295 | -10/Exiles | Met EX-HEX 315 | -10/Exiles | Build established: Mutant 320 | -10/Exiles | Met EX-BIN 330 | -10/Exiles | Aligned with FarCom system 331 | -10/Exiles | Given EX-Vault access code 352 | -10/Exiles | Opened EX-Vault 355 | -10/Exiles | Found Longsword +1 374 | -10/Exiles | Warned to stay clear of 0b10 Research branches 390 | -10/Exiles | Exiles lab attacked by MAIN.C 446 | -10/Exiles | Discovered new exit (range 14) 460 | -10/Exiles | Left Exiles lab with Longsword +1 460 | -10/Exiles | Entered Mines 540 | -9/Mines | Learned location of Zion (-7) 554 | -9/Mines | Assembled infested the area 583 | -9/Mines | Core integrity fell below 50% 586 | -9/Mines | Core integrity fell below 20% 588 | -9/Mines | Destroyed by D-53 Grenadier with Mini Grenade Launcher Last Messages --------------- payload. 00570_ D-53 Grenadier unfolds itself. 00570_ Wheel destroyed. 00570_ as-89978 destroyed. 00572_ as-31178 destroyed. 00572_ as-89495 destroyed. 00572_ as-24165 destroyed. 00572_ as-94443 destroyed. 00573_ System corrupted: Matter fused (-10). 00574_ as-06435 destroyed. 00577_ Assault Rifle destroyed. 00578_ as-63737 destroyed. 00579_ R-06 Scavenger destroyed. 00582_ K-01 Serf collects debris. 00582_ U-05 Engineer lays Concrete. 00582_ Ion Engine destroyed. 00582_ K-01 Serf destroyed. 00582_ T-07 Excavator destroyed. 00582_ U-05 Engineer destroyed. 00585_ Lgt. Assault Rifle destroyed. Map ----- +----------------------------------------------------+ | ?????????????????????????????????????????????????? | | ?????????????????????????????????????????????????? | | ?????????????????????????????????????????????????? | | ?????????????????????????????????????????????????? | | ?????????????????????????????????????????????????? | | ?????????????????????????????????????????????????? | | ?????????????????????????????????????????????????? | | ?????????????????????????????????????????????????? | | ?????????????????????????????????????????????????? | | ?????????????????????????????????????????????????? | | ?????????????????????????????????????????????????? | | ?????????????????????????????????????????????????? | | ?????????????????????????????????????????????????? | | ?????????????????????????????????????????????????? | | ?????????????????????????????????????????????????? | | ?????????????????????????????????????????????????? | | ???????????????????????????#?????????????????????? | | ??????????? ??????????##### ?????????????????????? | | ??????????? ??????????# ?????????????????????? | | ??????????" ?????????? $ ??????????????????????? | | ??????????" ??????????? ??????????????????????? | | ?????????? ??????????? ??????######??????????? | | ?????????? #??????????## ?????# ###########? | | ?????????? #??????????# ##???# #? | | ?????????? #?????????## ###?# | | ?????????? #?????????# @ ### #######???? | | ??????#### #????????## = ## #????????? | | ?????## #????????# # ##????????? | | ????## #????????# #????????? | | ???## = #????????# #?????????? | | ??## % #????????# #??????????? | | ??# = ##????????# r d % ##??????????? | | ??# = ## #????####?## d #???????????? | | ??## ### ###### ##?# #???????????? | | ???####?# #### % ###???????????? | | ????????###### ## = ###?????????????? | | ?????????????# ###???????????????? | | ?????????????## #?????????????????? | | ??????????????## ##### ##?????????????????? | | ???????????????########???#####??????????????????? | | ?????????????????????????????????????????????????? | | ?????????????????????????????????????????????????? | | ?????????????????????????????????????????????????? | | | | | | | | | | | | | | | +----------------------------------------------------+ Best States ------------- Heat Dissipation 25 Energy Generation 10 Energy Capacity 250 Matter Stores 287 Matter Capacity 300 Sight Range 16 Terrain Scan Density 10 Evasion (%) 50 Item Schematics ----------------- None Robot Schematics ------------------ None Fabricated ------------ Nothing Alien Tech Used ----------------- None Achievements -------------- None Challenges ------------ None Game ------ Seed ThrusterRemoteRouter Manual? 0 Play Time 00:14:03 Cumulative 120.1 hours Start 2024.12.29 @ 20:04:39 End 2024.12.29 @ 20:25:13 Sessions 1 Manual Loads 0 Difficulty Rogue Special Mode None Game No. 90 Rogue 90 Adventurer 0 Explorer 0 Win Type - Total 1 Types 1/0/0/0/0/0/0/0/0 Lore% 42 Gallery% 47 Achievement% 41 Wizard Run 0 Options --------- Layout 2 ASCII 0 Keyboard 0 Movement Mouse Keybinds 0 Fullscreen 1 Font 48/Smallcaps Map View 50x44 Zoom Use 0% Tactical HUD 1 Map Filters NONE Filters NONE Steam 1 RUN: d881d439-93f7-4c76-b78f-f81b7fce3cb0